Workbook

Sheet Sheet1
A1: Day | B1: green boy | E1: red boy | H1: orange boy | K1: blue boy | N1: yellow boy | Q1: Brown boy | T1: Date
B2: Grams | C2: lbs/0z | D2: % +/- | E2: Grams | F2: lbs/oz | G2: % +/- | H2: Grams | I2: lbs/oz | J2: % +/- | K2: Grams | L2: lbs/oz | M2: % +/- | N2: Grams | O2: lbs/oz | P2: % +/- | Q2: Grams | R2: lbs/oz | S2: % +/-
A3: Day 0 - | B3: 447 | C3: =B3*0.0352739619 -> 15.76746097 | E3: 365 | F3: =E3*0.0352739619 -> 12.87499609 | H3: 370 | I3: =H3*0.0352739619 -> 13.0513659 | K3: 357 | L3: =K3*0.0352739619 -> 12.5928044 | N3: 353 | O3: =N3*0.0352739619 -> 12.45170855 | Q3: 307 | R3: =Q3*0.0352739619 -> 10.8291063 | T3: 2013-04-25 | U3: 1344
A4: Day 1 | B4: 444 | C4: =B4*0.0352739619 -> 15.66163908 | D4: =((B4-B3)/B3) -> -0.006711409396 | E4: 380 | F4: =E4*0.0352739619 -> 13.40410552 | G4: =((E4-E3)/E3) -> 0.04109589041 | H4: 390 | I4: =H4*0.0352739619 -> 13.75684514 | J4: =((H4-H3)/H3) -> 0.05405405405 | K4: 382 | L4: =K4*0.0352739619 -> 13.47465345 | M4: =((K4-K3)/K3) -> 0.0700280112 | N4: 336 | O4: =N4*0.0352739619 -> 11.8520512 | P4: =(N4-N3)/N3 -> -0.04815864023 | Q4: 321 | R4: =Q4*0.0352739619 -> 11.32294177 | S4: =((Q4-Q3)/Q3) -> 0.04560260586 | T4: 2013-04-26 | U4: 10:54:00
A5: Day 2 | B5: 499 | C5: =B5*0.0352739619/16 -> 1.100106687 | D5: =((B5-B4)/B4) -> 0.1238738739 | E5: 425 | F5: =E5*0.0352739619/16 -> 0.936964613 | G5: =((E5-E4)/E4) -> 0.1184210526 | H5: 448 | I5: =H5*0.0352739619/16 -> 0.9876709332 | J5: =((H5-H4)/H4) -> 0.1487179487 | K5: 428 | L5: =K5*0.0352739619 -> 15.09725569 | M5: =((K5-K4)/K4) -> 0.1204188482 | N5: 390 | O5: =N5*0.0352739619 -> 13.75684514 | P5: =(N5-N4)/N4 -> 0.1607142857 | Q5: 350 | R5: =Q5*0.0352739619 -> 12.34588666 | S5: =((Q5-Q4)/Q4) -> 0.09034267913 | T5: 2013-04-27 | U5: 12:22:00
A6: Day 3 | B6: 531 | C6: =B6*0.0352739619/16 -> 1.170654611 | D6: 0.06412825651 | E6: 489 | F6: =E6*0.0352739619/16 -> 1.078060461 | G6: 0.1505882353 | H6: 481 | I6: =H6*0.0352739619/16 -> 1.06042348 | J6: 0.07366071429 | K6: 460 | L6: =K6*0.0352739619/16 -> 1.014126405 | M6: 0.07476635514 | N6: 423 | O6: =N6*0.0352739619/16 -> 0.9325553677 | P6: 0.08461538462 | Q6: 390 | R6: =Q6*0.0352739619/16 -> 0.8598028213 | S6: 0.1142857143 | T6: 2013-04-28 | U6: 12:24:00
A7: Day 4 | B7: 623 | C7: =B7*0.0352739619/16 -> 1.373479891 | D7: 0.1732580038 | E7: 539 | F7: 1.188291592 | G7: 0.1022494888 | H7: 540 | I7: 1.190496214 | J7: 0.1226611227 | K7: 528 | L7: =K7*0.0352739619 -> 18.62465188 | M7: 0.147826087 | N7: 480 | O7: =N7*0.0352739619/16 -> 1.058218857 | P7: 0.134751773 | Q7: 428 | R7: 0.9435784808 | S7: 0.09743589744 | T7: 2013-04-29 | U7: 17:19:00
A8: Day 5 | B8: 651 | C8: =B8*0.0352739619/16 -> 1.435209325 | D8: 0.04494382022 | E8: 596 | F8: 1.313955081 | G8: 0.1057513915 | H8: 562 | I8: 1.238997912 | J8: 0.04074074074 | K8: 547 | L8: =K8*0.0352739619/16 -> 1.205928572 | M8: 0.03598484848 | N8: 525 | O8: 1.157426875 | P8: 0.09375 | Q8: 462 | R8: 1.01853565 | S8: 0.07943925234 | T8: 2013-04-30 | U8: 13:29:00
A9: Day 6 | B9: 718 | C9: =B9*0.0352739619/16 -> 1.58291904 | D9: 0.1029185868 | E9: 646 | F9: 1.424186212 | G9: 0.08389261745 | H9: 623 | I9: 1.373479891 | J9: 0.1085409253 | K9: 583 | L9: =K9*0.0352739619/16 -> 1.285294987 | M9: 0.06581352834 | N9: 556 | O9: 1.225770176 | P9: 0.05904761905 | Q9: 494 | R9: 1.089083574 | S9: 0.06926406926 | T9: 2013-05-01 | U9: 15:41:00
A10: Day 7 | B10: 755 | C10: 1.664490077 | D10: 0.05153203343 | E10: 670 | F10: 1.477097155 | G10: 0.03715170279 | H10: 655 | I10: 1.444027815 | J10: 0.05136436597 | K10: 632 | L10: 1.393321495 | M10: 0.08404802744 | N10: 590 | O10: 1.300727345 | P10: 0.06115107914 | Q10: 518 | R10: 1.141994517 | S10: 0.04858299595 | T10: 2013-05-02 | U10: 16:12:00
A11: Day 8 | B11: 778 | C11: 1.715196397 | D11: 0.03046357616 | E11: 715 | F11: 1.576305172 | G11: 0.0671641791 | H11: 700 | I11: 1.543235833 | J11: 0.06870229008 | K11: 654 | L11: 1.441823193 | M11: 0.03481012658 | N11: 630 | O11: 1.38891225 | P11: 0.06779661017 | Q11: 581 | R11: 1.280885741 | S11: 0.1216216216 | T11: 2013-05-03 | U11: 12:43:00
A12: Day 9 | B12: 853 | C12: 1.880543094 | D12: 0.09640102828 | E12: 755 | F12: 1.664490077 | G12: 0.05594405594 | H12: 736 | I12: 1.622602247 | J12: 0.05142857143 | K12: 705 | L12: 1.554258946 | M12: 0.07798165138 | N12: 661 | O12: 1.457255551 | P12: 0.04920634921 | Q12: 599 | R12: 1.320568949 | S12: 0.03098106713 | T12: 2013-05-04 | U12: 11:00:00
A13: Day 10 | B13: 871 | C13: 1.920226301 | D13: 0.02110199297 | E13: 794 | F13: 1.750470359 | G13: 0.05165562914 | H13: 805 | I13: 1.774721208 | J13: 0.09375 | K13: 761 | L13: 1.677717813 | M13: 0.07943262411 | N13: 702 | O13: 1.547645078 | P13: 0.06202723147 | Q13: 654 | R13: 1.441823193 | S13: 0.0918196995 | T13: 2013-05-05 | U13: 10:32:00

Sheet Sheet2

Sheet Sheet3
